bitfinex-derivatives/quotes_SOLF0:USTF0_20241008
["timestamp","ask_amount","ask_price","bid_price","bid_amount"]
[1728357559614,10.61,144.79,144.75,3.4546]
[1728357559814,3.4543,144.77,144.74,10.61]
[1728357560014,10.61,144.79,144.74,3.4548]
[1728357560213,10.61,144.79,144.73,10.61]
[1728357560414,3.4542,144.77,144.72,16.58]
[1728357560609,3.4542,144.77,144.74,3.4547]
[1728357564215,3.4542,144.77,144.75,3.4547]
[1728357565515,3.4542,144.77,144.74,3.4548]
[1728357566915,9.33446633,144.8,144.74,3.4548]
[1728357567119,9.33446633,144.8,144.72,3.4554]
[1728357567120,3.4548,144.75,144.72,3.4554]
[1728357567518,3.4548,144.75,144.71,6.04502]
[1728357567825,3.4548,144.75,144.73,3.4552]
[1728357568021,16.58,144.79,144.73,3.4552]
[1728357568217,3.4546,144.76,144.73,3.4552]
[1728357572427,3.4547,144.75,144.73,3.4552]
[1728357573625,3.4547,144.75,144.71,0.12502]
[1728357573927,16.58,144.79,144.71,0.12502]
[1728357574230,3.4546,144.76,144.73,3.455]
[1728357576721,3.4549,144.75,144.72,3.4553]
[1728357579723,3.4546,144.76,144.73,3.4551]
[1728357580520,3.4546,144.76,144.73,14.0651]
[1728357580726,3.4546,144.76,144.73,10.61]
[1728357581830,10.61,144.78,144.72,10.61]
[1728357582033,3.4548,144.75,144.72,10.61]
[1728357582640,3.4548,144.75,144.72,14.0653]
[1728357583435,3.4548,144.75,144.72,10.61]
[1728357583635,3.4544,144.77,144.73,10.61]
[1728357583838,10.61,144.79,144.73,10.61]
[1728357584140,10.61,144.79,144.74,3.4548]
[1728357584341,3.4544,144.77,144.74,3.4548]
[1728357584642,3.4544,144.77,144.75,3.4547]
[1728357585442,14.02446633,144.8,144.75,3.4547]
[1728357585642,9.1739,144.79,144.76,3.4543]
[1728357585940,5.72,144.79,144.74,10.61]
[1728357586337,3.4541,144.78,144.75,3.4546]
[1728357587444,3.4541,144.78,144.74,10.61]
[1728357587646,9.1739,144.79,144.76,3.4543]
[1728357587843,5.72,144.79,144.76,3.4543]
[1728357588149,3.454,144.78,144.75,3.4546]
[1728357588446,3.454,144.78,144.74,10.61]
[1728357588647,5.72,144.79,144.76,10.61]
[1728357588945,3.4539,144.79,144.76,14.0643]
[1728357589447,3.4539,144.79,144.76,3.4543]
[1728357593156,3.4539,144.79,144.76,14.0643]
[1728357594147,3.4539,144.79,144.77,3.4542]
[1728357595250,16.33,144.81,144.77,3.4542]
[1728357595453,3.4536,144.8,144.77,3.4542]
[1728357595956,3.4538,144.79,144.77,3.4542]
[1728357598061,3.4538,144.79,144.76,10.61]
[1728357598261,3.4538,144.79,144.76,14.0643]
[1728357598963,3.454,144.78,144.76,14.0643]
[1728357601554,3.4538,144.79,144.76,10.61]
[1728357601759,5.72,144.81,144.77,3.4542]
[1728357602059,3.4533,144.81,144.77,10.61]
[1728357603260,3.4533,144.81,144.78,3.4539]
[1728357603866,0.12502,144.83,144.8,10.61]
[1728357604066,0.12502,144.83,144.82,10.61]
[1728357604567,0.12502,144.83,144.82,14.063]
[1728357605657,0.12502,144.83,144.82,3.453]
[1728357605859,0.12502,144.83,144.82,14.063]
[1728357608365,0.12502,144.83,144.8,5.72]
[1728357608562,0.12502,144.83,144.78,1.3223]
[1728357608763,0.12502,144.83,144.78,11.9323]
[1728357609459,3.4532,144.82,144.78,15.3861]
[1728357609665,3.4532,144.82,144.78,11.9323]
[1728357610964,3.4532,144.82,144.79,3.4537]
[1728357611155,0.12502,144.83,144.78,11.9323]
[1728357611356,3.4536,144.8,144.78,1.3223]
[1728357611561,10.61,144.82,144.77,12.0044]
[1728357611767,10.61,144.8,144.77,1.3944]
[1728357611963,5.72,144.81,144.77,10.61]
[1728357612169,5.72,144.81,144.78,14.064]
[1728357612964,5.72,144.81,144.76,3.4545]
[1728357613165,16.33,144.81,144.75,10.61]
[1728357613665,16.33,144.81,144.75,14.0646]
[1728357614175,3.4539,144.79,144.75,14.0646]
[1728357616476,16.33,144.81,144.75,14.0646]
[1728357617078,3.4539,144.79,144.75,14.0646]
[1728357617581,3.4539,144.79,144.76,14.0644]
[1728357619578,3.4533,144.81,144.78,3.4538]
[1728357619782,16.35502,144.83,144.77,10.61]
[1728357619983,16.35502,144.83,144.73,5.72]
[1728357619984,3.4539,144.79,144.76,10.61]
[1728357620680,3.4539,144.79,144.76,14.0644]
[1728357621671,3.454,144.78,144.76,14.0644]
[1728357622079,3.454,144.78,144.76,10.61]
[1728357622686,3.4545,144.76,144.72,69.3961837]
[1728357623091,10.61,144.77,144.72,65.3355837]
[1728357623386,10.61,144.75,144.71,0.12502]
[1728357623586,5.62,144.74,144.71,0.12502]
[1728357623883,3.4553,144.73,144.71,0.12502]
[1728357624278,5.62,144.74,144.71,0.12502]
[1728357624579,106.25228904,144.77,144.72,10.61]
[1728357624885,5.62,144.74,144.72,10.61]
[1728357625084,5.62,144.74,144.72,14.0653]
[1728357625787,5.62,144.75,144.73,3.455]
[1728357626386,3.4551,144.74,144.71,3.58062]
[1728357627382,16.23,144.75,144.71,0.12502]
[1728357627687,19.6848,144.75,144.72,3.4554]
[1728357627882,9.0748,144.75,144.72,3.4554]
[1728357628077,5.62,144.75,144.73,3.455]
[1728357628483,5.62,144.75,144.71,10.73502]
[1728357628688,5.62,144.75,144.72,3.4553]
[1728357629292,5.62,144.75,144.73,3.4551]
[1728357630678,95.64228904,144.77,144.73,10.61]
[1728357630891,104.71658904,144.77,144.74,3.4549]
[1728357631489,101.26228904,144.77,144.73,10.61]
[1728357631793,95.64228904,144.77,144.74,10.61]
[1728357631979,95.64228904,144.77,144.75,10.61]
[1728357632180,95.64228904,144.77,144.76,3.4545]
[1728357633193,95.64228904,144.77,144.75,14.0647]
[1728357634195,95.64228904,144.77,144.75,3.4547]
[1728357634796,95.64228904,144.77,144.74,10.61]
[1728357634797,99.09648904,144.77,144.74,14.0648]
[1728357636508,5.62,144.88,144.76,10.61]
[1728357636694,10.61,144.86,144.81,10.61]
[1728357636888,7.0546,144.88,144.82,10.61]
[1728357636889,17.6646,144.88,144.82,10.61]
[1728357637200,3.4519,144.87,144.82,14.063]
[1728357641986,17.6646,144.88,144.82,14.063]
[1728357642190,3.4522,144.86,144.82,14.063]
[1728357642994,3.4523,144.85,144.82,14.063]
[1728357643892,3.4523,144.85,144.82,10.61]
[1728357644096,3.4523,144.85,144.81,14.0632]
[1728357644406,3.4523,144.85,144.81,10.61]
[1728357645392,3.4523,144.85,144.82,3.453]
[1728357646807,10.61,144.86,144.81,10.61]
[1728357647107,3.57782,144.83,144.81,10.61]
[1728357647692,0.12502,144.83,144.81,10.61]
[1728357648703,0.12502,144.83,144.81,14.0632]
[1728357649005,0.12502,144.83,144.81,10.61]
[1728357649509,0.12502,144.83,144.82,10.61]
[1728357649897,0.12502,144.83,144.82,14.063]
[1728357650500,6.9746,144.88,144.82,10.61]
[1728357650501,5.54,144.88,144.82,10.61]
[1728357650705,5.54,144.88,144.85,14.0622]
[1728357650905,5.54,144.88,144.85,10.61]
[1728357651302,0.12502,144.89,144.87,10.61]
[1728357652100,0.12502,144.89,144.88,3.4516]
[1728357658015,0.12502,144.89,144.87,10.61]
[1728357658203,0.12502,144.89,144.87,14.0617]
[1728357658923,0.12502,144.89,144.86,14.062]
[1728357659105,0.12502,144.89,144.86,10.61]
[1728357661709,3.57652,144.89,144.86,14.0619]
[1728357662010,3.57652,144.89,144.86,10.61]
[1728357662399,3.57652,144.89,144.86,14.0621]
[1728357662806,3.57652,144.89,144.86,10.61]
[1728357663014,3.4518,144.88,144.85,10.61]
[1728357663409,3.57652,144.89,144.85,14.0622]
[1728357663708,3.57652,144.89,144.86,10.61]
[1728357664813,0.12502,144.89,144.86,10.61]
[1728357665009,3.4516,144.88,144.86,10.61]
[1728357666805,3.57642,144.89,144.86,14.0621]
[1728357667313,0.12502,144.89,144.86,10.61]
[1728357667616,0.12502,144.89,144.87,3.4518]
[1728357669519,3.57642,144.89,144.86,14.062]
[1728357670115,3.57642,144.89,144.86,3.452]
[1728357671111,0.12502,144.89,144.85,10.61]
[1728357671316,0.12502,144.89,144.87,14.0617]
[1728357673214,0.12502,144.89,144.87,10.61]
[1728357673411,3.57642,144.89,144.86,3.452]
[1728357675212,3.4516,144.88,144.86,3.452]
[1728357675412,0.12502,144.89,144.86,3.452]
[1728357675824,3.57652,144.89,144.86,3.452]
[1728357676421,0.12502,144.89,144.85,10.61]
[1728357676625,0.12502,144.89,144.85,3.4522]
[1728357676824,3.65870206,144.89,144.84,10.61]
[1728357677117,0.12502,144.89,144.84,10.61]
[1728357677325,5.42,144.88,144.85,10.61]
[1728357677720,8.8717,144.88,144.85,14.0621]
[1728357682329,3.4519,144.87,144.85,10.61]
[1728357682719,3.4521,144.86,144.83,3.4527]
[1728357683031,16.03,144.88,144.82,10.61]
[1728357683419,5.42,144.88,144.84,10.61]
[1728357684220,3.4519,144.87,144.84,14.0624]
[1728357684813,5.42,144.88,144.84,10.61]
[1728357685024,3.4522,144.86,144.84,10.61]
[1728357685324,16.03,144.88,144.82,10.61]
[1728357685526,3.4523,144.85,144.82,14.0629]
[1728357685920,16.03,144.88,144.79,2.8515]
[1728357686123,3.4529,144.83,144.8,3.4535]
[1728357686328,5.42,144.84,144.79,10.61]
[1728357686722,3.4531,144.82,144.79,14.0636]
[1728357687031,5.42,144.84,144.79,10.61]
[1728357687219,3.4533,144.81,144.78,14.0639]
[1728357688023,10.61,144.82,144.77,3.57922]
[1728357689117,3.4536,144.8,144.77,3.57922]
[1728357689928,10.61,144.82,144.77,3.57922]
[1728357690122,3.4534,144.81,144.77,3.57922]
[1728357691725,3.4534,144.81,144.78,14.0639]
[1728357692227,3.4534,144.81,144.78,10.61]
[1728357693524,3.4531,144.82,144.78,10.61]
[1728357693720,10.61,144.85,144.8,10.61]
[1728357693926,5.42,144.83,144.8,14.0634]
[1728357694535,5.42,144.83,144.79,10.61]
[1728357694731,5.42,144.83,144.79,14.0636]
[1728357695327,3.4533,144.81,144.79,10.61]
[1728357695534,3.4533,144.81,144.78,14.0638]
[1728357697231,16.03,144.83,144.77,0.12502]
[1728357697433,3.4536,144.8,144.77,3.57922]
[1728357698333,3.4533,144.81,144.78,3.4538]
[1728357703542,3.4536,144.8,144.77,14.18912]
[1728357708433,3.4537,144.79,144.77,14.18912]
[1728357708832,3.51206041,144.81,144.77,14.18912]
[1728357709541,3.4536,144.8,144.77,14.18912]
[1728357711645,3.51206041,144.81,144.77,14.18912]
[1728357712246,3.4537,144.8,144.77,14.18912]
[1728357717152,10.61,144.8,144.77,3.57912]
[1728357717345,3.4538,144.79,144.77,3.57912]
[1728357717553,8.7738,144.79,144.77,0.12502]
[1728357717752,15.93,144.79,144.77,0.12502]
[1728357718055,14.064,144.78,144.77,0.12502]
[1728357720551,3.454,144.78,144.77,0.12502]
[1728357721947,3.51206041,144.81,144.77,10.73502]
[1728357722152,15.93,144.87,144.82,3.453]
[1728357722350,5.32,144.87,144.82,10.61]
[1728357723051,15.93,144.87,144.82,10.61]
[1728357723255,5.32,144.86,144.83,3.4526]
[1728357724466,8.7721,144.86,144.83,3.4526]
[1728357724952,3.4521,144.86,144.83,3.4526]
[1728357725152,8.7721,144.86,144.83,3.4526]
[1728357725453,5.32,144.86,144.82,10.61]
[1728357725650,5.32,144.86,144.85,3.4523]
[1728357726548,5.32,144.86,144.84,3.4525]
[1728357727561,14.0616,144.88,144.85,3.4521]
[1728357727763,15.93,144.88,144.82,10.61]
[1728357728164,3.4519,144.87,144.84,3.4524]
[1728357730160,10.61,144.85,144.78,14.7929]
[1728357730354,10.61,144.83,144.78,14.7929]
[1728357730559,10.61,144.83,144.81,3.4533]
[1728357730863,19.3828,144.84,144.81,3.4533]
[1728357731163,15.93,144.84,144.79,10.61]
[1728357731365,3.4524,144.85,144.82,3.453]
[1728357731561,3.4524,144.85,144.82,10.61]
[1728357731562,5.32,144.85,144.82,10.61]
[1728357732367,5.32,144.85,144.83,3.4526]
[1728357732666,5.32,144.85,144.82,10.61]
[1728357732873,8.7723,144.85,144.82,14.0629]
[1728357733464,8.7723,144.85,144.82,3.4529]
[1728357734564,14.0626,144.84,144.81,3.4532]
[1728357735468,5.32,144.85,144.83,3.4526]
[1728357735670,5.3,144.86,144.81,10.61]
[1728357735871,5.3,144.86,144.78,4.1829]
[1728357735872,0.12502,144.89,144.88,3.4516]
[1728357741075,0.12502,144.89,144.88,14.0616]
[1728357744576,5.42502,144.95,144.88,10.61]
[1728357744769,5.42502,144.95,144.9,10.61]
[1728357745273,8.87502,144.95,144.92,3.4505]
[1728357745869,3.57502,144.95,144.92,3.4505]
[1728357746277,98.98592501,144.94,144.91,3.4508]
[1728357750178,98.98592501,144.94,144.9,10.61]
[1728357750373,95.53572501,144.94,144.91,3.4507]
[1728357750680,0.12502,144.95,144.93,10.61]
[1728357751079,5.42502,145.01,144.94,10.61]
[1728357751383,16.03502,145.01,144.96,10.61]
[1728357751689,3.4491,144.99,144.96,14.0595]
[1728357752180,5.42502,145.01,144.96,10.61]
[1728357752386,3.4488,145.0,144.98,10.61]
[1728357759391,3.449,144.99,144.96,14.0596]
[1728357762883,10.61,144.98,144.93,1.3042]
[1728357763084,10.61,144.97,144.92,10.61]
[1728357763498,3.45,144.95,144.92,14.0605]
[1728357765386,3.45,144.95,144.92,3.4505]
[1728357765900,10.61,144.96,144.92,10.61]
[1728357766100,15.81,144.97,144.92,10.61]
[1728357766594,3.4496,144.97,144.95,10.61]
[1728357767796,15.81,145.0,144.94,10.61]
[1728357767797,3.4499,144.96,144.94,10.61]
[1728357768807,3.4499,144.95,144.94,10.61]
[1728357774511,3.4499,144.95,144.92,14.0606]
[1728357775720,10.61,144.97,144.92,10.61]
[1728357776017,3.4503,144.94,144.92,10.61]
[1728357776414,3.4504,144.93,144.91,14.0608]
[1728357776611,3.4504,144.93,144.89,5.32502]
[1728357776816,3.4504,144.93,144.91,10.61]
[1728357777618,3.4504,144.93,144.91,14.0609]
[1728357777916,3.4502,144.94,144.91,14.0609]
[1728357778322,3.4502,144.94,144.92,10.61]
[1728357781024,3.45,144.95,144.92,14.0605]
[1728357781723,5.2,144.96,144.92,10.61]
[1728357781724,3.4502,144.94,144.92,10.61]
[1728357785921,3.4502,144.94,144.92,14.0606]
[1728357786123,3.4502,144.94,144.92,10.61]
[1728357787121,3.4506,144.93,144.91,10.61]
[1728357787518,15.81,144.96,144.91,10.61]
[1728357787720,3.4501,144.95,144.92,3.4505]
[1728357787920,15.81,144.96,144.92,3.4505]
[1728357788121,10.61,144.95,144.89,10.73502]
[1728357788325,10.61,144.94,144.89,10.73502]
[1728357788735,10.61,144.94,144.89,14.18632]
[1728357789425,10.61,144.92,144.89,0.12502]
[1728357789733,3.4511,144.9,144.89,0.12502]
[1728357790626,14.0611,144.9,144.89,0.12502]
[1728357794027,14.0611,144.9,144.83,10.73502]
[1728357794028,3.4521,144.86,144.83,10.73502]
[1728357794420,3.4524,144.85,144.83,0.12502]
[1728357794627,8.72288347,144.88,144.83,10.73502]
[1728357795025,5.2,144.88,144.83,10.73502]
[1728357795227,5.2,144.88,144.83,0.12502]
[1728357795429,3.452,144.87,144.84,3.4524]
[1728357795821,3.4521,144.86,144.83,14.18762]
[1728357796021,5.2,144.88,144.84,10.61]
[1728357796230,95.55945061,144.9,144.86,10.61]
[1728357796831,99.01075061,144.9,144.87,3.4517]
[1728357798027,3.4515,144.89,144.86,14.062]
[1728357800135,3.4516,144.88,144.85,14.0622]
[1728357800442,106.16945061,144.9,144.85,10.61]
[1728357801641,3.4515,144.89,144.86,3.452]
[1728357802441,3.4516,144.88,144.85,14.0621]
[1728357805827,3.4519,144.87,144.85,3.4521]
[1728357806735,3.4517,144.88,144.85,3.4521]
[1728357807247,10.61,144.89,144.85,3.4521]
[1728357807432,3.452,144.87,144.84,3.4525]
[1728357809441,3.4517,144.88,144.85,3.4523]
[1728357810433,10.61,144.89,144.84,10.61]
[1728357810434,3.4514,144.89,144.86,3.4519]
[1728357810641,10.61,144.89,144.83,10.73502]
[1728357810836,95.55945061,144.9,144.85,10.61]
[1728357811037,3.4514,144.89,144.87,3.4518]
[1728357811239,95.55945061,144.9,144.85,10.61]
[1728357811745,99.01075061,144.9,144.87,3.4517]
[1728357814951,3.4514,144.89,144.85,10.61]
[1728357815155,3.4514,144.89,144.86,3.452]
[1728357816044,106.16945061,144.9,144.86,3.452]
[1728357816248,3.4516,144.88,144.86,3.452]
[1728357816639,3.452,144.87,144.84,1.4397]
[1728357817241,3.452,144.87,144.84,4.8922]
[1728357820554,3.452,144.87,144.85,3.4523]
[1728357821645,3.452,144.87,144.84,4.8921]
[1728357822045,10.61,144.88,144.84,4.8921]
[1728357822244,10.61,144.88,144.84,1.4397]
[1728357822762,15.81,144.87,144.83,3.57772]
[1728357823550,3.4522,144.86,144.83,3.57772]
[1728357824160,3.4521,144.86,144.83,0.12502]
[1728357826350,5.2,144.87,144.83,10.73502]
[1728357826555,8.6519,144.87,144.84,3.4525]
[1728357828356,3.4521,144.86,144.83,14.18772]
[1728357829066,3.4521,144.86,144.83,3.57772]
[1728357829362,3.4521,144.86,144.83,0.12502]
[1728357829665,3.4521,144.86,144.84,3.4525]
[1728357834662,8.6519,144.87,144.83,10.73502]
[1728357834858,5.2,144.87,144.85,3.4523]
[1728357835260,3.4524,144.85,144.83,0.12502]
[1728357835463,10.61,144.86,144.83,0.12502]
[1728357836766,14.0626,144.84,144.83,0.12502]
[1728357843082,3.4524,144.85,144.83,0.12502]
[1728357843284,10.61,144.86,144.83,0.12502]
[1728357843680,3.4526,144.84,144.83,0.12502]
[1728357844988,14.0622,144.86,144.83,0.12502]
[1728357845194,96.96455061,144.9,144.85,10.61]
[1728357845490,3.4516,144.88,144.85,14.0622]
[1728357845793,3.4516,144.88,144.85,3.4522]
[1728357847585,8.6514,144.89,144.87,3.4518]
[1728357847890,95.55945061,144.9,144.85,10.61]
[1728357848089,95.55945061,144.9,144.89,3.4514]
[1728357848788,95.55945061,144.9,144.87,10.61]
[1728357849191,95.55945061,144.9,144.88,10.61]
[1728357850192,95.55945061,144.9,144.89,3.4514]
[1728357851892,8.6508,144.92,144.89,3.4514]
[1728357853903,5.2,144.92,144.91,3.4509]
[1728357854195,15.458,144.94,144.91,3.4509]
[1728357854396,12.0077,144.94,144.91,3.4509]
[1728357855191,15.458,144.94,144.91,3.4509]
[1728357855396,12.0077,144.94,144.91,3.4509]
[1728357855593,3.4504,144.93,144.9,3.451]
[1728357856200,12.0077,144.94,144.89,10.61]
[1728357856397,14.0603,144.94,144.91,3.4508]
[1728357856899,10.61,144.94,144.89,10.61]
[1728357857092,10.61,144.94,144.9,3.451]
[1728357857398,10.61,144.93,144.9,3.451]
[1728357858501,3.4507,144.92,144.9,3.451]
[1728357861402,10.61,144.93,144.88,10.61]
[1728357861623,14.0611,144.91,144.86,10.61]
[1728357862505,14.0611,144.91,144.88,3.4514]
[1728357864799,3.4515,144.89,144.86,3.4521]
[1728357865499,10.61,144.9,144.85,10.61]
[1728357865705,10.61,144.9,144.84,13.3136]
[1728357866908,3.4518,144.88,144.85,3.4522]
[1728357867706,3.4519,144.87,144.85,3.4522]
[1728357867907,3.4519,144.87,144.84,13.3136]
[1728357868109,3.4519,144.87,144.84,16.7661]
[1728357870214,3.4519,144.87,144.84,6.1561]
[1728357870510,3.4519,144.87,144.84,3.4525]
[1728357870704,3.4521,144.86,144.83,14.18762]
[1728357874709,5.2,144.87,144.83,10.73502]
[1728357874909,10.61,144.86,144.83,0.12502]
[1728357875112,10.61,144.85,144.83,0.12502]
[1728357876508,3.4526,144.84,144.83,0.12502]
[1728357884218,14.0626,144.84,144.83,0.12502]
[1728357892728,3.4524,144.85,144.83,0.12502]
[1728357893026,10.61,144.85,144.83,0.12502]
[1728357893223,5.2,144.86,144.83,0.12502]
[1728357894523,8.6521,144.86,144.84,3.4526]
[1728357894827,8.6521,144.86,144.83,0.12502]
[1728357895026,8.6521,144.86,144.83,3.57772]
[1728357895922,10.61,144.85,144.83,3.57772]
[1728357896532,14.0624,144.85,144.83,0.12502]
[1728357899229,10.61,144.84,144.83,0.12502]
[1728357901637,14.0624,144.85,144.83,0.12502]
[1728357903936,10.61,144.85,144.83,3.57772]
[1728357908825,14.0624,144.85,144.83,3.57772]
[1728357909031,14.0624,144.85,144.83,0.12502]
[1728357910839,5.2,144.87,144.83,0.12502]
[1728357911036,10.61,144.86,144.84,3.4524]
[1728357911638,14.0621,144.86,144.83,3.57772]
[1728357913326,14.0621,144.86,144.84,3.4525]
[1728357916141,14.0623,144.85,144.83,0.12502]
[1728357919240,14.0626,144.84,144.83,0.12502]
[1728357921233,14.0624,144.85,144.83,0.12502]
[1728357921841,10.61,144.84,144.83,0.12502]
[1728357922446,14.0626,144.84,144.83,0.12502]
[1728357926144,5.2,144.87,144.83,0.12502]
[1728357926339,14.0624,144.85,144.83,0.12502]
[1728357928745,10.61,144.85,144.83,3.57772]
[1728357928951,10.61,144.85,144.83,0.12502]
[1728357930450,14.0623,144.85,144.83,0.12502]
[1728357932353,3.4526,144.84,144.83,0.12502]
[1728357933240,14.0626,144.84,144.83,0.12502]
[1728357944461,10.61,144.84,144.83,0.12502]
[1728357944965,14.0626,144.84,144.83,0.12502]
[1728357951259,14.0626,144.84,144.79,2.7737]
[1728357951260,10.61,144.84,144.77,0.12502]
[1728357951458,10.61,144.8,144.77,0.12502]
[1728357951762,10.61,144.8,144.78,3.4538]
[1728357954970,5.18,144.83,144.78,14.0638]
[1728357955264,15.79,144.83,144.78,10.61]
[1728357956561,15.79,144.83,144.81,3.4533]
[1728357962267,10.61,144.83,144.81,3.4533]
[1728357963172,10.61,144.82,144.81,3.4533]
[1728357963374,10.61,144.82,144.77,5.30502]
[1728357963571,10.61,144.82,144.8,3.4534]
[1728357965467,10.61,144.82,144.81,3.4533]
[1728357967981,10.61,144.82,144.8,3.4534]
[1728357974191,10.61,144.84,144.77,15.91502]
[1728357975699,10.61,144.84,144.81,3.4531]
[1728357977895,14.0626,144.84,144.77,5.30502]
[1728357978100,10.61,144.82,144.79,3.4536]
[1728357978296,10.61,144.82,144.77,15.91502]
[1728357978903,10.61,144.82,144.8,3.4534]
[1728357980799,10.61,144.82,144.77,5.30502]
[1728357981009,10.61,144.8,144.78,3.4539]
[1728357981902,10.61,144.8,144.79,3.4537]
[1728357992700,10.61,144.82,144.79,3.4537]
[1728357998009,3.4529,144.83,144.79,3.4537]
[1728357998305,3.454,144.78,144.77,0.12502]
[1728357998614,14.064,144.78,144.77,0.12502]
[1728358000613,10.61,144.78,144.77,0.12502]
[1728358002001,14.0639,144.79,144.77,0.12502]
[1728358003814,10.61,144.79,144.77,0.12502]
[1728358004012,15.79,144.8,144.77,3.57912]
[1728358004206,15.79,144.82,144.77,0.12502]
[1728358004601,19.2432,144.82,144.78,3.4539]
[1728358004907,19.2432,144.82,144.77,0.12502]
[1728358005111,10.61,144.79,144.77,0.12502]
[1728358006418,10.61,144.79,144.77,3.57912]
[1728358010311,10.61,144.79,144.77,0.12502]
[1728358010711,10.61,144.78,144.77,0.12502]
[1728358010907,14.064,144.78,144.77,0.12502]
[1728358013611,3.4546,144.76,144.73,3.4551]
[1728358013818,10.61,144.75,144.72,65.3328173]
[1728358014015,10.61,144.75,144.72,68.7881173]
[1728358016118,10.61,144.75,144.72,3.4553]
[1728358016309,14.0647,144.75,144.72,3.4553]
[1728358016514,10.61,144.73,144.71,3.58062]
[1728358016716,10.61,144.73,144.71,0.12502]
[1728358016912,14.0652,144.73,144.71,0.12502]
[1728358017219,10.61,144.72,144.71,0.12502]
[1728358017612,14.0654,144.72,144.71,0.12502]
[1728358018115,10.61,144.72,144.7,50.0]
[1728358018424,14.0657,144.71,144.7,50.0]
[1728358021220,17.49483867,144.71,144.7,50.0]
[1728358021624,3.4557,144.71,144.7,50.0]
[1728358021922,14.0657,144.71,144.7,50.0]
[1728358022915,10.61,144.71,144.7,50.0]
[1728358023120,10.61,144.72,144.7,50.0]
[1728358024521,10.61,144.72,144.7,53.4557]
[1728358027626,10.61,144.73,144.7,50.0]
[1728358029429,10.61,144.73,144.71,3.4555]
[1728358031126,14.0654,144.72,144.7,50.0]
[1728358033730,3.4557,144.71,144.7,50.0]
[1728358046931,3.4565,144.68,144.65,0.12502]
[1728358047136,10.61,144.67,144.65,0.12502]
[1728358048241,10.61,144.67,144.66,3.4568]
[1728358048444,10.61,144.68,144.66,3.4568]
[1728358048845,14.0662,144.69,144.66,3.4568]
[1728358049241,10.61,144.68,144.66,3.4568]
[1728358054346,5.16,144.72,144.66,3.4568]
[1728358054552,10.61,144.71,144.65,10.73502]
[1728358055455,14.0658,144.71,144.67,3.4564]
[1728358057355,14.0658,144.71,144.65,10.73502]
[1728358057653,14.0658,144.71,144.68,3.4564]
[1728358060153,3.4558,144.71,144.68,3.4564]
[1728358060459,10.61,144.7,144.68,3.4564]
[1728358061242,14.0659,144.7,144.68,3.4564]
[1728358061954,10.61,144.69,144.68,3.4564]
[1728358062955,10.61,144.69,144.67,3.4565]
[1728358063455,14.0659,144.7,144.67,3.4565]
[1728358063652,5.16,144.72,144.65,0.12502]
[1728358063846,10.61,144.71,144.65,5.28502]